fUST/lending_fUST_20251122
["ID","MTS","AMOUNT","RATE_DAILY","PERIOD"]
[394613999,1763770248429,-500.0,0.00011647,2]
[394614000,1763770248439,-500.0,0.00011647,2]
[394614001,1763770248448,-500.0,0.00011647,2]
[394614002,1763770248458,-500.0,0.00011647,2]
[394614003,1763770248468,-500.0,0.00011647,2]
[394614004,1763770248477,-500.0,0.00011647,2]
[394614005,1763770248486,-500.0,0.00011647,2]
[394614006,1763770248495,-500.0,0.00011647,2]
[394614007,1763770248505,-500.0,0.00011647,2]
[394614008,1763770248514,-500.0,0.00011647,2]
[394614009,1763770248523,-500.0,0.00011647,2]
[394614010,1763770248532,-500.0,0.00011647,2]
[394614011,1763770248541,-500.0,0.00011647,2]
[394614012,1763770248554,-500.0,0.00011647,2]
[394614013,1763770248563,-500.0,0.00011647,2]
[394614014,1763770248572,-500.0,0.00011647,2]
[394614015,1763770248581,-500.0,0.00011647,2]
[394614016,1763770248590,-500.0,0.00011647,2]
[394614017,1763770248599,-500.0,0.00011647,2]
[394614018,1763770248608,-500.0,0.00011647,2]
[394614019,1763770248618,-500.0,0.00011647,2]
[394614020,1763770248628,-500.0,0.00011647,2]
[394614021,1763770248637,-500.0,0.00011647,2]
[394614022,1763770248646,-500.0,0.00011647,2]
[394614023,1763770248656,-500.0,0.00011647,2]
[394614024,1763770248666,-500.0,0.00011647,2]
[394614025,1763770248676,-500.0,0.00011647,2]
[394614026,1763770248685,-500.0,0.00011647,2]
[394614027,1763770248694,-500.0,0.00011647,2]
[394614028,1763770248703,-500.0,0.00011647,2]
[394614029,1763770248713,-500.0,0.00011647,2]
[394614030,1763770248722,-500.0,0.00011647,2]
[394614031,1763770248732,-500.0,0.00011647,2]
[394614032,1763770248742,-500.0,0.00011647,2]
[394614033,1763770248752,-162.00117441,0.00011647,2]
[394614034,1763770248761,-500.0,0.00011647,2]
[394614035,1763770248771,-201.93286098,0.00011763,2]
[394614036,1763770248780,-259681.51352998,0.0001177,2]
[394614039,1763770754161,468.955553,0.0002,30]
[394614041,1763771024680,283.86831337,8.172e-05,2]
[394614042,1763771046680,283.86831337,8.172e-05,2]
[394614043,1763771069888,283.86831337,8.172e-05,2]
[394614045,1763771214891,283.86831337,8.172e-05,2]
[394614047,1763771287508,150.0,8.214e-05,2]
[394614053,1763771354461,450.197331,0.0002,30]
[394614054,1763771360218,-150.0,8.297e-05,2]
[394614055,1763771360239,-150.0,8.381e-05,2]
[394614056,1763771360259,-190.0,8.507e-05,2]
[394614088,1763771432311,-93.86831337,8.507e-05,2]
[394614090,1763771432323,-150.0,9.444e-05,2]
[394614092,1763771432333,-177.0,0.00011444,2]
[394614094,1763771432342,-1200.0,0.00011637,2]
[394614096,1763771432351,-170.0,0.00011637,2]
[394614098,1763771432362,-579.13168663,0.00011637,2]
[394614103,1763771432448,-425.4736,0.00011637,2]
[394614150,1763771437961,-195.39471337,0.00011521,2]
[394614156,1763771437990,-195.39471337,0.00011637,2]
[394614160,1763771438019,-500.0,0.00011638,2]
[394614164,1763771438054,-500.0,0.00011638,2]
[394614168,1763771438083,-500.0,0.00011638,2]
[394614172,1763771438111,-500.0,0.00011638,2]
[394614177,1763771438147,-500.0,0.00011638,2]
[394614181,1763771438176,-209.42078258,0.00011638,2]
[394614185,1763771438204,-500.0,0.00011638,2]
[394614189,1763771438240,-500.0,0.00011638,2]
[394614193,1763771438268,-500.0,0.00011638,2]
[394614197,1763771438305,-299.57958136,0.00011638,2]
[394614200,1763771438321,-195.39471337,0.00011638,2]
[394614202,1763771438334,-5.02570527,0.00011638,2]
[394614204,1763771438344,-190.3690081,0.00011638,2]
[394614207,1763771438359,-309.6309919,0.00011638,2]
[394614209,1763771438370,-190.3690081,0.00011638,2]
[394614212,1763771438387,-309.6309919,0.00011638,2]
[394614214,1763771438397,-190.3690081,0.00011638,2]
[394614217,1763771438422,-309.6309919,0.00011638,2]
[394614219,1763771438432,-500.0,0.00011638,2]
[394614221,1763771438442,-500.0,0.00011638,2]
[394614223,1763771438452,-76.3690081,0.00011638,2]
[394614225,1763771438463,-500.0,0.00011638,2]
[394614227,1763771438474,-29.74468667,0.00011638,2]
[394614229,1763771438483,-470.25531333,0.00011638,2]
[394614231,1763771438494,-29.74468667,0.00011638,2]
[394614233,1763771438503,-500.0,0.00011638,2]
[394614235,1763771438512,-500.0,0.00011638,2]
[394614237,1763771438522,-500.0,0.00011638,2]
[394614239,1763771438531,-500.0,0.00011638,2]
[394614241,1763771438540,-500.0,0.00011638,2]
[394614243,1763771438550,-500.0,0.00011638,2]
[394614245,1763771438559,-500.0,0.00011638,2]
[394614247,1763771438569,-500.0,0.00011638,2]
[394614249,1763771438578,-500.0,0.00011638,2]
[394614251,1763771438588,-500.0,0.00011638,2]
[394614253,1763771438598,-586.38118751,0.00011638,2]
[394614255,1763771438608,-500.0,0.00011638,2]
[394614257,1763771438617,-500.0,0.00011638,2]
[394614259,1763771438627,-500.0,0.00011638,2]
[394614261,1763771438636,-500.0,0.00011638,2]
[394614263,1763771438646,-500.0,0.00011638,2]
[394614265,1763771438658,-250.0,0.00011638,2]
[394614267,1763771438668,-500.0,0.00011638,2]
[394614268,1763771438679,-500.0,0.00011638,2]
[394614270,1763771438688,-233.95927282,0.00011639,2]
[394614272,1763771438698,-312.23460062,0.00011662,2]
[394614274,1763771438708,-500.0,0.00011662,2]
[394614276,1763771438717,-250.0,0.00011663,2]
[394614278,1763771438727,-250.0,0.00011663,2]
[394614280,1763771438736,-201.93286098,0.00011663,2]
[394614282,1763771438746,-250.0,0.00011663,2]
[394614284,1763771438757,-151.0,0.00011663,2]
[394614286,1763771438766,-553.64373807,0.00011663,2]
[394614288,1763771438775,-201.93286098,0.00011663,2]
[394614290,1763771438784,-1508.63577838,0.0001167,2]
[394614292,1763771438800,-500.0,0.0001167,2]
[394614295,1763771438819,-209.42078258,0.0001167,2]
[394614298,1763771438831,-500.0,0.0001167,2]
[394614300,1763771438846,-500.0,0.0001167,2]
[394614302,1763771438858,-500.0,0.0001167,2]
[394614305,1763771438875,-500.0,0.0001167,2]
[394614475,1763771440550,-7566.7566376,0.00011638,2]
[394614843,1763771447196,-42433.2433624,0.00011638,2]
[394614845,1763771447206,-2000.0,0.00011663,2]
[394614846,1763771447215,-176215.82726347,0.0001167,2]
[394614847,1763771447225,-500.0,0.00011673,2]
[394614848,1763771447235,-418.61683744,0.00011673,2]
[394614849,1763771447245,-1000.0,0.00012221,2]
[394614850,1763771447255,-8635.24,0.00012329,2]
[394614851,1763771447265,-151.0,0.00012329,2]
[394614852,1763771447274,-151.0,0.00012329,2]
[394614853,1763771447285,-151.0,0.00012329,2]
[394614854,1763771447298,-150.0,0.00012452,2]
[394614855,1763771447308,-150.0,0.00012452,2]
[394614856,1763771447318,-150.0,0.00012452,2]
[394614857,1763771447328,-414.0,0.00012472,2]
[394614858,1763771447339,-1500.0,0.00012768,2]
[394614859,1763771447349,-1000.0,0.000128,2]
[394614860,1763771447358,-396.1023285,0.00012884,2]
[394614861,1763771447368,-353.13058887,0.00013076,2]
[394614862,1763771447380,-500.0,0.00013188,2]
[394614863,1763771447390,-2000.0,0.00013316,2]
[394614864,1763771447403,-204.0,0.00013444,2]
[394614865,1763771447412,-792.204657,0.00013447,2]
[394614866,1763771447422,-481.23,0.00013599,2]
[394614867,1763771447431,-151.0,0.000136,2]
[394614868,1763771447440,-999.66252065,0.00013659,2]
[394614869,1763771447449,-1161.0,0.00013686,2]
[394614870,1763771447460,-500.0,0.00013698,2]
[394614871,1763771447469,-500.0,0.00013698,2]
[394614872,1763771447478,-500.0,0.00013698,2]
[394614873,1763771447487,-500.0,0.00013698,2]
[394614874,1763771447497,-500.0,0.00013698,2]
[394614875,1763771447506,-500.0,0.00013698,2]
[394614876,1763771447515,-500.0,0.00013698,2]
[394614877,1763771447525,-500.0,0.00013698,2]
[394614878,1763771447535,-500.0,0.00013698,2]
[394614879,1763771447543,-500.0,0.00013698,2]
[394614880,1763771447553,-500.0,0.00013698,2]
[394614881,1763771447563,-500.0,0.00013698,2]
[394614882,1763771447572,-500.0,0.00013698,2]
[394614883,1763771447582,-500.0,0.00013698,2]
[394614884,1763771447591,-500.0,0.00013698,2]
[394614885,1763771447600,-500.0,0.00013698,2]
[394614886,1763771447610,-500.0,0.00013698,2]
[394614887,1763771447619,-500.0,0.00013698,2]
[394614888,1763771447628,-394.70412856,0.00013698,2]
[394614889,1763771447638,-151.0,0.00013698,2]
[394614890,1763771447647,-151.0,0.00013698,2]
[394614891,1763771447657,-151.0,0.00013699,2]
[394614892,1763771447666,-151.0,0.00013699,2]
[394614893,1763771447675,-1000.0,0.00013699,2]
[394614894,1763771447685,-151.0,0.00013699,2]
[394614895,1763771447695,-151.0,0.00013699,2]
[394614896,1763771447705,-151.0,0.00013699,2]
[394614897,1763771447714,-151.0,0.00013699,2]
[394614898,1763771447723,-151.0,0.00013699,2]
[394614899,1763771447733,-151.0,0.00013699,2]
[394614900,1763771447742,-151.0,0.00013699,2]
[394614901,1763771447752,-151.0,0.00013699,2]
[394614902,1763771447761,-151.0,0.00013699,2]
[394614903,1763771447771,-151.0,0.00013699,2]
[394614904,1763771447780,-151.0,0.00013699,2]
[394614905,1763771447789,-151.0,0.00013699,2]
[394614906,1763771447799,-151.0,0.00013699,2]
[394614907,1763771447808,-151.0,0.00013699,2]
[394614908,1763771447817,-151.0,0.00013699,2]
[394614909,1763771447827,-151.0,0.00013699,2]
[394614910,1763771447836,-151.0,0.00013699,2]
[394614911,1763771447846,-151.0,0.00013699,2]
[394614912,1763771447857,-151.0,0.00013699,2]
[394614913,1763771447867,-151.0,0.00013699,2]
[394614914,1763771447876,-151.0,0.00013699,2]
[394614915,1763771447886,-151.0,0.00013699,2]
[394614916,1763771447895,-201.228896,0.00013699,2]
[394614917,1763771447905,-269.465916,0.00013699,2]
[394614918,1763771447914,-154.50111,0.00013699,2]
[394614919,1763771447924,-157.512946,0.00013699,2]
[394614920,1763771447934,-151.0,0.00013699,2]
[394614921,1763771447943,-151.0,0.00013699,2]
[394614922,1763771447953,-151.0,0.00013699,2]
[394614923,1763771447963,-151.0,0.00013699,2]
[394614924,1763771447972,-151.0,0.00013699,2]
[394614925,1763771447982,-151.0,0.00013699,2]
[394614926,1763771447991,-151.0,0.00013699,2]
[394614927,1763771448000,-151.0,0.00013699,2]
[394614928,1763771448010,-151.0,0.00013699,2]
[394614929,1763771448019,-151.0,0.00013699,2]
[394614930,1763771448028,-151.0,0.00013699,2]
[394614931,1763771448038,-151.0,0.00013699,2]
[394614932,1763771448047,-151.0,0.00013699,2]
[394614933,1763771448056,-151.0,0.00013699,2]
[394614934,1763771448065,-1177.696131,0.00013699,2]
[394614935,1763771448074,-156.231993,0.00013699,2]
[394614936,1763771448083,-151.0,0.00013699,2]
[394614937,1763771448092,-151.0,0.00013699,2]
[394614938,1763771448102,-151.0,0.00013699,2]
[394614939,1763771448111,-300.0,0.00013699,2]
[394614940,1763771448120,-300.0,0.00013699,2]
[394614941,1763771448130,-300.0,0.00013699,2]
[394614942,1763771448139,-300.0,0.00013699,2]
[394614943,1763771448148,-300.0,0.00013699,2]
[394614944,1763771448157,-300.0,0.00013699,2]
[394614945,1763771448166,-300.0,0.00013699,2]
[394614946,1763771448175,-300.0,0.00013699,2]
[394614947,1763771448185,-163.6716,0.00013699,2]
[394614948,1763771448195,-1161.0,0.00013699,2]
[394614949,1763771448204,-1161.0,0.00013699,2]
[394614950,1763771448213,-1161.0,0.00013721,2]
[394614951,1763771448223,-1161.0,0.00013732,2]
[394614952,1763771448232,-1161.0,0.00013785,2]
[394614953,1763771448241,-1161.0,0.00013796,2]
[394614954,1763771448250,-151.0,0.000138,2]
[394614955,1763771448260,-1161.0,0.00013804,2]
[394614956,1763771448269,-1161.0,0.00013813,2]
[394614957,1763771448278,-160.0,0.00013836,2]
[394614958,1763771448290,-151.0,0.00013843,2]
[394614959,1763771448303,-155.701236,0.00013843,2]
[394614960,1763771448312,-2500.0,0.00013864,2]
[394614961,1763771448321,-1161.0,0.00013885,2]
[394614962,1763771448331,-1161.0,0.00013891,2]
[394614963,1763771448340,-151.0,0.00013891,2]
[394614964,1763771448349,-151.0,0.00013891,2]
[394614965,1763771448359,-151.0,0.00013891,2]
[394614966,1763771448371,-1161.0,0.00013898,2]
[394614967,1763771448381,-1161.0,0.00013904,2]
[394614968,1763771448390,-1161.0,0.00013934,2]
[394614969,1763771448401,-151.0,0.00013972,2]
[394614970,1763771448410,-151.0,0.00013972,2]
[394614971,1763771448420,-151.0,0.00013972,2]
[394614972,1763771448621,-151.0,0.00013972,2]
[394614973,1763771448632,-151.0,0.00013972,2]
[394614974,1763771448642,-151.0,0.00013972,2]
[394614975,1763771448658,-164.435789,0.00013972,2]
[394614976,1763771448668,-151.0,0.00013972,2]
[394614977,1763771448677,-260.749243,0.00013972,2]
[394614978,1763771448687,-151.0,0.00013972,2]
[394614979,1763771448696,-1161.0,0.00013972,2]
[394614980,1763771448705,-1161.0,0.00014003,2]
[394614981,1763771448715,-1161.0,0.00014047,2]
[394614982,1763771448725,-1161.0,0.00014052,2]
[394614983,1763771448735,-1161.0,0.00014072,2]
[394614984,1763771448746,-151.0,0.00014078,2]
[394614985,1763771448756,-151.0,0.00014078,2]
[394614986,1763771448766,-1161.0,0.00014078,2]
[394614987,1763771448776,-1161.0,0.00014097,2]
[394614988,1763771448785,-204.257824,0.0001411,2]
[394614989,1763771448794,-1161.0,0.0001411,2]
[394614990,1763771448804,-1161.0,0.00014118,2]
[394614991,1763771448814,-151.0,0.00014156,2]
[394614992,1763771448824,-151.0,0.00014156,2]
[394614993,1763771448833,-1161.0,0.00014176,2]
[394614994,1763771448842,-1161.0,0.00014177,2]
[394614995,1763771448852,-151.0,0.000143,2]
[394614996,1763771448861,-151.0,0.00014384,2]
[394614997,1763771448870,-260.0,0.00014384,2]
[394614998,1763771448879,-300.0,0.00014384,2]
[394614999,1763771448888,-300.0,0.00014384,2]
[394615000,1763771448899,-300.0,0.00014384,2]
[394615001,1763771448908,-198.7164,0.00014384,2]
[394615002,1763771448918,-3000.0,0.00014412,2]
[394615003,1763771448927,-13260.4904988,0.00014521,2]
[394615004,1763771448936,-151.0,0.00014521,2]
[394615005,1763771448945,-151.0,0.00014521,2]
[394615006,1763771448954,-151.0,0.00014521,2]
[394615007,1763771448964,-151.0,0.00014521,2]
[394615008,1763771448973,-360.0,0.00014932,2]
[394615009,1763771448982,-151.0,0.0001496,2]
[394615010,1763771448992,-151.0,0.0001496,2]
[394615011,1763771449001,-151.0,0.0001496,2]
[394615012,1763771449011,-151.0,0.0001496,2]
[394615013,1763771449020,-151.0,0.0001496,2]
[394615014,1763771449029,-151.0,0.0001496,2]
[394615015,1763771449038,-151.0,0.0001496,2]
[394615016,1763771449048,-151.0,0.0001496,2]
[394615017,1763771449058,-2312.06349669,0.0001496,2]
[394615018,1763771449067,-4000.0,0.00015,3]
[394615019,1763771449077,-151.0,0.00015028,2]
[394615020,1763771449087,-154.073443,0.00015028,2]
[394615021,1763771449096,-198.56078,0.00015028,2]
[394615022,1763771449105,-204.5272,0.00015028,2]
[394615023,1763771449114,-154.692797,0.00015028,2]
[394615024,1763771449123,-151.0,0.00015028,2]
[394615025,1763771449132,-151.0,0.00015028,2]
[394615026,1763771449141,-203.522816,0.00015028,2]
[394615027,1763771449151,-209.984968,0.00015028,2]
[394615028,1763771449160,-151.0,0.00015028,2]
[394615029,1763771449170,-151.0,0.00015028,2]
[394615030,1763771449179,-151.0,0.00015028,2]
[394615031,1763771449188,-151.0,0.00015028,2]
[394615032,1763771449198,-151.0,0.00015028,2]
[394615033,1763771449207,-65982.30077632,0.00015028,2]
[394615057,1763771952338,439.271501,0.0002,30]
[394615058,1763772058540,500.0,0.00025278,120]
[394615059,1763772222182,5000.0,0.00014,10]
[394615060,1763772427137,-203.78771266,0.0001033,2]
[394615061,1763772427158,-75.21228734,0.00010382,2]
[394615062,1763772435070,-203.78771266,0.00010227,2]
[394615063,1763772435092,-71.55449958,0.00010382,2]
[394615064,1763772552153,421.700641,0.0002,30]
[394615088,1763772632185,-3.23321308,0.00010382,2]
[394615090,1763772632194,-1200.0,0.0001153,2]
[394615092,1763772632204,-300.0,0.0001153,2]
[394615094,1763772632213,-1200.0,0.0001153,2]
[394615096,1763772632222,-500.0,0.00011573,2]
[394615098,1763772632232,-7196.04,0.00012329,2]
[394615100,1763772632242,-5996.7,0.00012329,2]
[394615102,1763772632251,-643.34410264,0.00012329,2]
[394615204,1763772638150,-3291.06443375,0.00012329,2]
[394615205,1763772638262,-1062.84146361,0.00012329,2]
[394615206,1763772638272,-4164.37,0.00012329,2]
[394615207,1763772638282,-1280.48452345,0.00012329,2]
[394615208,1763772638354,-2189.82547655,0.00012329,2]
[394615209,1763772638364,-2891.92,0.00012329,2]
[394615210,1763772638374,-2409.94,0.00012329,2]
[394615211,1763772638384,-2008.28,0.00012329,2]
[394615212,1763772638394,-1673.57,0.00012329,2]
[394615213,1763772638403,-1394.64,0.00012329,2]
[394615214,1763772638413,-1162.2,0.00012329,2]
[394615215,1763772638423,-968.5,0.00012329,2]
[394615216,1763772638432,-807.08,0.00012329,2]
[394615217,1763772638441,-672.57,0.00012329,2]
[394615218,1763772638450,-560.47,0.00012329,2]
[394615219,1763772638460,-467.06,0.00012329,2]
[394615220,1763772638469,-389.22,0.00012329,2]
[394615221,1763772638479,-324.35,0.00012329,2]
[394615222,1763772638488,-270.29,0.00012329,2]
[394615223,1763772638498,-225.24,0.00012329,2]
[394615224,1763772638507,-187.7,0.00012329,2]
[394615225,1763772638516,-156.42,0.00012329,2]
[394615226,1763772638526,-782.12,0.00012329,2]
[394615227,1763772638536,-177.0,0.00012382,2]
[394615228,1763772638545,-300.0,0.00012663,2]
[394615229,1763772638555,-304.11662726,0.00012683,2]
[394615230,1763772638567,-970.88337274,0.00012683,2]
[394615231,1763772638576,-414.0,0.00012828,2]
[394615232,1763772638586,-160.0,0.00013076,2]
[394615233,1763772638595,-353.13058887,0.00013078,2]
[394615234,1763772638605,-204.0,0.00014382,2]
[394615235,1763772638615,-151.668,0.00014415,2]
[394615236,1763772638624,-667.4093092,0.00014859,2]
[394615237,1763772638635,-421.700641,0.00015028,2]
[394615238,1763772638644,-1337.30371513,0.00015068,2]
[394615239,1763772638654,-988.148182,0.00015068,2]
[394615240,1763772638666,-988.148182,0.00015068,2]
[394615241,1763772638679,-988.148182,0.00015068,2]
[394615242,1763772638688,-988.148182,0.00015068,2]
[394615243,1763772638698,-160.0,0.00015143,2]
[394615244,1763772638707,-988.148182,0.00015182,2]
[394615245,1763772638717,-988.148182,0.00015182,2]
[394615246,1763772638727,-988.148182,0.00015182,2]
[394615247,1763772638736,-988.148182,0.00015182,2]
[394615248,1763772638749,-151.0,0.000154,2]
[394615249,1763772638759,-150.0,0.00015452,2]
[394615250,1763772638768,-260.0,0.00015691,2]
[394615251,1763772638778,-414.0,0.00015828,2]
[394615252,1763772638787,-360.0,0.00016239,2]
[394615253,1763772638797,-1073.90065445,0.0001632,2]
[394615254,1763772638806,-231.0,0.00016382,2]
[394615255,1763772638816,-156.63259637,0.00016438,2]
[394615256,1763772638825,-151.0,0.00016438,2]
[394615257,1763772638835,-181.22,0.0001644,2]
[394615258,1763772638845,-511.64114612,0.00016445,2]
[394615259,1763772638854,-920.95406301,0.00016452,2]
[394615260,1763772638864,-1637.25166757,0.00016458,2]
[394615261,1763772638874,-305.07295859,0.000165,2]
[394615262,1763772638885,-549.13132546,0.000165,2]
[394615263,1763772638894,-976.23346748,0.000165,2]
[394615264,1763772638903,-151.0,0.000165,2]
[394615265,1763772638913,-90.0849613,0.000165,2]
[394615348,1763772798830,169.407643,0.000192,30]
[394615349,1763772895245,275.46467175,8.691e-05,2]
[394615350,1763773163938,407.504404,0.0002,30]
[394615353,1763773413974,160.0,0.0001825,36]
[394615354,1763773414278,160.0,0.0001821,35]
[394615355,1763773414680,160.0,0.00018169,34]
[394615356,1763773414984,160.0,0.00018129,33]
[394615357,1763773415289,160.0,0.00018089,32]
[394615358,1763773415593,160.0,0.00018049,31]
[394615359,1763773415880,160.0,0.00018008,30]
[394615360,1763773757346,391.204228,0.0002,30]
[394615361,1763773794553,183.76550245,8.691e-05,2]
[394615380,1763773832428,-300.0,0.0001025,2]
[394615382,1763773832438,-300.0,0.00010354,2]
[394615384,1763773832447,-150.0,0.00010726,2]
[394615386,1763773832456,-300.0,0.00010994,2]
[394615388,1763773832465,-766.05213207,0.00010995,2]
[394615390,1763773832475,-1820.45541686,0.00010995,2]
[394615392,1763773832484,-766.05213207,0.00010995,2]
[394615394,1763773832494,-1820.45541686,0.00010995,2]
[394615396,1763773832503,-766.05213207,0.00010995,2]
[394615398,1763773832512,-1820.45541686,0.00010995,2]
[394615400,1763773832521,-766.05213207,0.00010995,2]
[394615402,1763773832530,-1820.45541686,0.00010995,2]
[394615404,1763773832540,-766.05213207,0.00010995,2]
[394615406,1763773832549,-1820.45541686,0.00010995,2]
[394615408,1763773832558,-766.05213207,0.00010995,2]
[394615410,1763773832567,-1820.45541686,0.00010995,2]
[394615412,1763773832577,-766.05213207,0.00010995,2]
[394615414,1763773832586,-1820.45541686,0.00010995,2]
[394615416,1763773832596,-766.05213207,0.00010995,2]
[394615418,1763773832606,-1820.45541686,0.00010995,2]
[394615420,1763773832615,-766.05213207,0.00010995,2]
[394615422,1763773832625,-306.43903789,0.00010995,2]
[394615426,1763773832648,-338.09787289,0.00010995,2]
[394615472,1763773838472,-121.51522129,0.00010995,2]
[394615475,1763773838482,-1820.45541686,0.00010995,2]
[394615477,1763773838492,-766.05213207,0.00010995,2]
[394615479,1763773838502,-1696.52054148,0.00010995,2]
[394615481,1763773838514,-123.93487538,0.00010995,2]
[394615483,1763773838523,-766.05213207,0.00010995,2]
[394615485,1763773838533,-1820.45541686,0.00010995,2]
[394615487,1763773838543,-766.05213207,0.00010995,2]
[394615488,1763773838552,-1820.45541686,0.00010995,2]
[394615489,1763773838563,-766.05213207,0.00010995,2]
[394615490,1763773838573,-1820.45541686,0.00010995,2]
[394615491,1763773838583,-766.05213207,0.00010995,2]
[394615492,1763773838592,-1820.45541686,0.00010995,2]
[394615493,1763773838603,-766.05213207,0.00010995,2]
[394615494,1763773838612,-1820.45541686,0.00010995,2]
[394615495,1763773838622,-766.05213207,0.00010995,2]
[394615496,1763773838631,-969.74424514,0.00010995,2]
[394615497,1763773838643,-850.71117172,0.00010995,2]
[394615498,1763773838653,-766.05213207,0.00010995,2]
[394615499,1763773838664,-1820.45541686,0.00010995,2]
[394615500,1763773838675,-46.85567616,0.00010995,2]
[394615501,1763773838686,-498.03557956,0.00010995,2]
[394615502,1763773838699,-221.16087635,0.00010995,2]
[394615503,1763773838709,-1820.45541686,0.00010995,2]
[394615504,1763773838719,-766.05213207,0.00010995,2]
[394615505,1763773838729,-1156.49157472,0.00010995,2]
[394615506,1763773838741,-663.96384214,0.00010995,2]
[394615507,1763773838751,-766.05213207,0.00010995,2]
[394615508,1763773838764,-1820.45541686,0.00010995,2]
[394615509,1763773838774,-766.05213207,0.00010995,2]
[394615510,1763773838783,-1820.45541686,0.00010995,2]
[394615511,1763773838793,-766.05213207,0.00010995,2]
[394615512,1763773838802,-766.05213207,0.00010995,2]
[394615513,1763773838812,-1820.45541686,0.00010995,2]
[394615514,1763773838822,-766.05213207,0.00010995,2]
[394615515,1763773838831,-1820.45541686,0.00010995,2]
[394615516,1763773838841,-766.05213207,0.00010995,2]
[394615517,1763773838850,-766.05213207,0.00010995,2]
[394615518,1763773838860,-1820.45541686,0.00010995,2]
[394615519,1763773838870,-766.05213207,0.00010995,2]
[394615520,1763773838880,-1820.45541686,0.00010995,2]
[394615521,1763773838890,-766.05213207,0.00010995,2]
[394615522,1763773838903,-1820.45541686,0.00010995,2]
[394615523,1763773838914,-766.05213207,0.00010995,2]
[394615524,1763773838924,-766.05213207,0.00010995,2]
[394615525,1763773838934,-1488.91732502,0.00010995,2]
[394615560,1763773840723,-331.53809184,0.00010995,2]
[394615563,1763773840734,-766.05213207,0.00010995,2]
[394615564,1763773840744,-1820.45541686,0.00010995,2]
[394615566,1763773840754,-766.05213207,0.00010995,2]
[394615568,1763773840763,-1820.45541686,0.00010995,2]
[394615570,1763773840773,-766.05213207,0.00010995,2]
[394615572,1763773840782,-1740.70785524,0.00010995,2]
[394615575,1763773840794,-79.74756162,0.00010995,2]
[394615577,1763773840803,-766.05213207,0.00010995,2]
[394615578,1763773840813,-397.74358579,0.00010995,2]
[394615581,1763773840824,-368.30854628,0.00010995,2]
[394615582,1763773840834,-1227.49145372,0.00010995,2]
[394615586,1763773840860,-592.96396314,0.00010995,2]
[394615588,1763773840870,-1.43634276,0.00010995,2]
[394615590,1763773840882,-764.61578931,0.00010995,2]
[394615592,1763773840891,-1820.45541686,0.00010995,2]
[394615594,1763773840902,-766.05213207,0.00010995,2]
[394615596,1763773840915,-1820.45541686,0.00010995,2]
[394615598,1763773840925,-766.05213207,0.00010995,2]
[394615600,1763773840935,-766.05213207,0.00010995,2]
[394615602,1763773840945,-1820.45541686,0.00010995,2]
[394615604,1763773840954,-766.05213207,0.00010995,2]
[394615606,1763773840964,-1820.45541686,0.00010995,2]
[394615608,1763773840974,-766.05213207,0.00010995,2]
[394615610,1763773840984,-1820.45541686,0.00010995,2]
[394615612,1763773840994,-766.05213207,0.00010995,2]
[394615614,1763773841004,-1820.45541686,0.00010995,2]
[394615616,1763773841014,-766.05213207,0.00010995,2]
[394615618,1763773841023,-1820.45541686,0.00010995,2]
[394615620,1763773841033,-766.05213207,0.00010995,2]
[394615622,1763773841042,-1820.45541686,0.00010995,2]
[394615624,1763773841051,-766.05213207,0.00010995,2]